bitfinex/quotes_BTCUSD_20250410
["timestamp","ask_amount","ask_price","bid_price","bid_amount"]
[1744270803420,0.05,81457.0,81456.0,0.2028693]
[1744270803615,0.062276,81457.0,81456.0,0.2028693]
[1744270803816,0.34,81458.0,81456.0,0.2028693]
[1744270804144,0.012275,81460.0,81456.0,0.2028693]
[1744270804145,0.05,81460.0,81459.0,0.012276]
[1744270804285,0.05,81465.0,81464.0,0.257779]
[1744270804486,0.004,81469.0,81468.0,0.257769]
[1744270804790,0.004,81469.0,81468.0,0.37832282]
[1744270807646,0.004,81469.0,81468.0,0.56524282]
[1744270807955,0.004,81469.0,81468.0,0.68567541]
[1744270809261,0.004,81469.0,81468.0,1.09947541]
[1744270809654,0.004,81469.0,81468.0,1.18608332]
[1744270809846,0.004,81469.0,81468.0,1.52608332]
[1744270810147,0.004,81469.0,81468.0,1.48797541]
[1744270810598,0.004,81469.0,81468.0,1.50251626]
[1744270813676,4e-07,81475.0,81474.0,0.012273]
[1744270814046,4e-07,81475.0,81474.0,1.25672601]
[1744270814333,4e-07,81475.0,81474.0,1.29479441]
[1744270814893,0.000337,81498.0,81490.0,0.257699]
[1744270815103,0.000337,81498.0,81490.0,1.85452417]
[1744270815104,0.00076269,81491.0,81490.0,1.85452417]
[1744270815306,0.00076269,81491.0,81490.0,2.19207082]
[1744270815514,0.00076269,81491.0,81490.0,2.24182165]
[1744270815717,0.00076269,81491.0,81490.0,2.28732165]
[1744270815896,0.00076269,81491.0,81490.0,2.70112165]
[1744270816095,0.00076269,81491.0,81490.0,2.74952165]
[1744270820118,6.9e-07,81491.0,81490.0,2.74388165]
[1744270820703,0.000337,81498.0,81497.0,0.597677]
[1744270820904,0.00046476,81498.0,81497.0,1.23528946]
[1744270821339,2.28109866,81500.0,81499.0,0.597671]
[1744270821467,1.27328736,81500.0,81499.0,0.73276567]
[1744270822506,0.8051284,81500.0,81499.0,0.73276567]
[1744270823129,0.8051284,81500.0,81499.0,0.74498355]
[1744270823989,0.8051284,81500.0,81499.0,0.92618355]
[1744270824386,0.8051284,81500.0,81499.0,0.7304427]
[1744270824653,0.8051284,81500.0,81499.0,0.55942482]
[1744270824804,0.8051284,81500.0,81499.0,0.57396567]
[1744270825951,0.8051284,81500.0,81499.0,0.98776567]
[1744270826825,0.8051284,81500.0,81499.0,0.97322482]
[1744270828298,0.8051284,81500.0,81499.0,0.30175382]
[1744270828455,0.8551284,81500.0,81499.0,0.30175382]
[1744270829068,0.8051284,81500.0,81499.0,0.55942482]
[1744270829473,0.8551284,81500.0,81499.0,0.55942482]
[1744270829836,0.8051284,81500.0,81499.0,0.55942482]
[1744270830241,0.8551284,81500.0,81499.0,0.55942482]
[1744270831096,0.8551284,81500.0,81499.0,0.54715482]
[1744270831511,0.8551284,81500.0,81499.0,0.54711482]
[1744270831737,0.86547428,81500.0,81499.0,0.54711482]
[1744270832144,0.81547428,81500.0,81499.0,0.55938482]
[1744270832431,0.86547428,81500.0,81499.0,0.55938482]
[1744270832731,0.81547428,81500.0,81499.0,0.55938482]
[1744270833441,0.86547428,81500.0,81499.0,0.55938482]
[1744270835374,0.81547428,81500.0,81499.0,0.55938482]
[1744270837581,0.81547428,81500.0,81499.0,0.12055382]
[1744270837779,1.12314128,81500.0,81499.0,0.12055382]
[1744270837981,0.86547428,81500.0,81499.0,0.12055382]
[1744270838155,0.86547428,81500.0,81499.0,0.37822482]
[1744270838339,1.11087228,81500.0,81499.0,0.12055382]
[1744270838539,0.05,81488.0,81482.0,0.4138]
[1744270838748,0.012272,81486.0,81483.0,0.12055382]
[1744270838956,0.062272,81483.0,81482.0,0.00042629]
[1744270839153,0.07095656,81483.0,81482.0,0.00042629]
[1744270839594,0.07095656,81483.0,81482.0,0.01858892]
[1744270839947,0.21475122,81484.0,81482.0,0.01858892]
[1744270840172,0.00720196,81483.0,81482.0,0.01858892]
[1744270840397,0.06827396,81483.0,81482.0,0.00042629]
[1744270841330,0.00720196,81483.0,81482.0,0.13325211]
[1744270841555,0.25265096,81483.0,81482.0,0.12098011]
[1744270841726,0.0964,81491.0,81482.0,0.13325211]
[1744270841930,0.01242,81505.0,81499.0,0.257671]
[1744270841931,0.2471,81503.0,81499.0,0.257671]
[1744270842131,0.0483,81505.0,81499.0,0.54715482]
[1744270842350,0.245393,81502.0,81499.0,0.30175382]
[1744270842506,0.2457334,81501.0,81499.0,0.30175382]
[1744270842889,0.0003364,81501.0,81499.0,0.30175382]
[1744270843263,0.0003364,81501.0,81493.0,0.01227]
[1744270843264,0.34,81499.0,81449.0,0.0001684]
[1744270843391,0.012272,81486.0,81479.0,0.1812]
[1744270843590,0.245447,81485.0,81483.0,0.01816263]
[1744270843844,0.257719,81485.0,81484.0,0.1812]
[1744270844241,0.257721,81483.0,81466.0,0.0124434]
[1744270844444,0.257721,81483.0,81467.0,0.659296]
[1744270844620,0.257772,81467.0,81466.0,0.0001684]
[1744270844822,0.257772,81467.0,81454.0,0.4138]
[1744270844823,0.25781,81455.0,81454.0,0.4138]
[1744270845282,0.257826,81450.0,81441.0,0.1853685]
[1744270845461,0.257826,81450.0,81449.0,0.0002954]
[1744270846553,0.245544,81452.0,81449.0,0.0002954]
[1744270846762,0.0090234,81450.0,81449.0,0.0002954]
[1744270846964,0.257824,81451.0,81449.0,0.0002954]
[1744270847164,0.012277,81450.0,81449.0,0.0002954]
[1744270847694,0.01793574,81450.0,81449.0,0.0002954]
[1744270851141,0.012278,81446.0,81441.0,0.1853685]
[1744270851344,0.0012046,81449.0,81445.0,0.245563]
[1744270851490,0.00567249,81445.0,81442.0,0.12055382]
[1744270851944,0.245562,81446.0,81442.0,0.12055382]
[1744270852195,0.245564,81445.0,81442.0,0.12055382]
[1744270852443,0.00566947,81444.0,81442.0,0.12055382]
[1744270852754,0.245565,81445.0,81442.0,0.12055382]
[1744270852963,0.00474332,81443.0,81442.0,0.12055382]
[1744270853111,0.245565,81445.0,81442.0,0.29807382]
[1744270853311,0.00474332,81443.0,81442.0,0.29807382]
[1744270853498,0.245565,81445.0,81442.0,0.29807382]
[1744270853700,0.0012046,81449.0,81448.0,0.012277]
[1744270853940,0.0012046,81449.0,81448.0,0.17752]
[1744270854720,0.2590336,81449.0,81448.0,0.17752]
[1744270855324,0.0012046,81449.0,81448.0,0.55590582]
[1744270856273,0.0012046,81449.0,81448.0,0.29807382]
[1744270856645,0.0012046,81449.0,81448.0,0.55590582]
[1744270858997,0.0012046,81449.0,81448.0,0.12055382]
[1744270859200,0.0012046,81449.0,81448.0,0.29807382]
[1744270859353,0.0012046,81449.0,81448.0,0.29657382]
[1744270859566,0.0012046,81449.0,81442.0,0.012278]
[1744270859567,0.012278,81445.0,81441.0,0.1816885]
[1744270859791,0.245573,81442.0,81441.0,0.1816885]
[1744270860247,0.257845,81444.0,81441.0,0.1816885]
[1744270860447,0.0012046,81449.0,81447.0,0.245558]
[1744270860666,0.0012046,81449.0,81445.0,0.012278]
[1744270860857,0.0012046,81449.0,81447.0,0.12055382]
[1744270861268,0.0012046,81449.0,81448.0,0.257832]
[1744270861467,0.0012046,81449.0,81448.0,0.37838582]
[1744270861815,0.2590336,81449.0,81448.0,0.12055382]
[1744270862068,0.2590336,81449.0,81448.0,0.01205538]
[1744270862227,0.257851,81442.0,81441.0,0.0041685]
[1744270862426,0.257851,81442.0,81441.0,0.12472232]
[1744270862653,0.257851,81442.0,81441.0,0.30224232]
[1744270862899,0.245564,81446.0,81441.0,0.31452032]
[1744270863031,0.0012046,81449.0,81448.0,0.245555]
[1744270863239,0.0012046,81449.0,81447.0,0.245558]
[1744270863454,0.0012046,81449.0,81448.0,0.12055382]
[1744270863870,0.0012046,81449.0,81448.0,0.36610882]
[1744270864078,0.0012046,81449.0,81448.0,0.12055382]
[1744270864279,0.2467566,81449.0,81448.0,0.12055382]
[1744270864490,0.24556,81447.0,81441.0,0.1816885]
[1744270864822,0.2590336,81449.0,81442.0,0.13283182]
[1744270864823,0.012277,81448.0,81442.0,0.13283182]
[1744270865007,0.0012046,81449.0,81448.0,0.257832]
[1744270865253,0.012277,81447.0,81442.0,0.245571]
[1744270865385,0.245565,81445.0,81443.0,0.12055382]
[1744270865588,0.257835,81448.0,81444.0,0.245566]
[1744270865798,0.257835,81448.0,81445.0,0.12055382]
[1744270866435,0.245558,81448.0,81445.0,0.12055382]
[1744270866808,0.0012046,81449.0,81448.0,0.257832]
[1744270867010,0.0012046,81449.0,81448.0,0.36610882]
[1744270867237,0.2467566,81449.0,81448.0,0.12055382]
[1744270867690,0.2590336,81449.0,81448.0,0.12055382]
[1744270867892,0.2590336,81449.0,81441.0,0.0041685]
[1744270868141,0.257851,81442.0,81441.0,0.0041685]
[1744270868339,0.0012046,81449.0,81444.0,0.012278]
[1744270868540,0.0012046,81449.0,81446.0,0.24556]
[1744270868541,0.2467576,81449.0,81446.0,0.24556]
[1744270868803,0.2467576,81449.0,81448.0,0.257832]
[1744270868804,0.0012046,81449.0,81448.0,0.257832]
[1744270869012,0.0012046,81449.0,81448.0,0.37838582]
[1744270869215,0.0012046,81449.0,81448.0,0.55590582]
[1744270869418,0.2590336,81449.0,81448.0,0.17752]
[1744270869622,0.2590336,81449.0,81448.0,0.195272]
[1744270869820,0.2590336,81449.0,81448.0,0.17752]
[1744270870382,0.0012046,81449.0,81448.0,0.29807382]
[1744270870716,0.0012046,81449.0,81448.0,0.54362882]
[1744270870915,0.0012046,81449.0,81448.0,0.55590582]
[1744270871375,0.0012046,81449.0,81448.0,0.96970582]
[1744270871550,0.0012046,81449.0,81448.0,0.98203891]
[1744270871749,0.0012046,81449.0,81448.0,0.99657976]
[1744270871958,0.0012046,81449.0,81448.0,1.33657976]
[1744270872331,0.0012046,81449.0,81448.0,1.37465441]
[1744270873176,0.0012046,81449.0,81448.0,1.42305441]
[1744270873374,5.746e-05,81450.0,81449.0,0.07391785]
[1744270873583,5.746e-05,81450.0,81449.0,0.23254632]
[1744270873781,0.000337,81483.0,81481.0,0.257727]
[1744270874005,0.00162782,81482.0,81481.0,0.55580082]
[1744270875693,0.00162782,81482.0,81481.0,0.29807382]
[1744270875918,0.00162782,81482.0,81481.0,0.31034582]
[1744270878004,0.00162782,81482.0,81481.0,0.54662582]
[1744270878203,0.00162782,81482.0,81481.0,0.72414582]
[1744270881106,0.00162782,81482.0,81481.0,0.96960082]
[1744270883171,0.00162782,81482.0,81481.0,0.96544082]
[1744270883699,0.245428,81491.0,81481.0,0.96544082]
[1744270883700,0.0126054,81501.0,81487.0,0.012271]
[1744270884018,0.00042599,81493.0,81490.0,0.245428]
[1744270884214,0.00042599,81493.0,81491.0,0.12055382]
[1744270884452,0.012272,81485.0,81481.0,0.4138]
[1744270884603,0.00042599,81493.0,81492.0,0.17336]
[1744270884805,0.25811699,81493.0,81492.0,0.17336]
[1744270885005,0.30401699,81493.0,81492.0,0.17336]
[1744270886450,0.00042599,81493.0,81492.0,0.17336]
[1744270886672,0.00042599,81493.0,81492.0,0.55160682]
[1744270887644,0.00042599,81493.0,81492.0,1.30540682]
[1744270887855,0.8051284,81500.0,81499.0,0.257671]
[1744270888053,0.8051284,81500.0,81499.0,0.79202482]
[1744270889255,0.8051284,81500.0,81499.0,0.80102859]
[1744270889383,0.8051284,81500.0,81499.0,0.97438859]
[1744270890826,0.8051284,81500.0,81499.0,1.32892944]
[1744270891029,0.8051284,81500.0,81499.0,1.37822944]
[1744270893655,0.8051284,81500.0,81499.0,1.15556944]
[1744270893856,0.8051284,81500.0,81499.0,1.32888944]
[1744270894067,0.8051284,81500.0,81499.0,0.79202482]
[1744270894271,0.8051284,81500.0,81499.0,0.96534482]
[1744270895499,0.8051284,81500.0,81499.0,1.31988567]
[1744270896579,8e-07,81501.0,81500.0,0.647567]
[1744270896782,8e-07,81501.0,81500.0,0.76812082]
[1744270899114,8e-07,81501.0,81500.0,1.18192082]
[1744270904363,8e-07,81501.0,81500.0,1.13202082]
[1744270904528,8e-07,81501.0,81500.0,1.14656167]
[1744270905042,8e-07,81501.0,81500.0,1.31984167]
[1744270906586,0.000337,81515.0,81500.0,1.31984167]
[1744270906587,0.000337,81515.0,81514.0,0.597623]
[1744270906806,0.00046474,81515.0,81514.0,2.03322952]
[1744270907379,7.4e-07,81515.0,81514.0,2.44702952]
[1744270908587,7.4e-07,81515.0,81514.0,2.62030952]
[1744270912721,4e-07,81521.0,81520.0,0.597604]
[1744270912876,4e-07,81521.0,81520.0,1.18457052]
[1744270914534,4e-07,81521.0,81520.0,1.19360034]
[1744270915281,4e-07,81522.0,81521.0,0.61214185]
[1744270915487,8e-07,81532.0,81531.0,0.61211085]
[1744270915725,8e-07,81532.0,81531.0,0.94281652]
[1744270915933,0.0462368,81548.0,81531.0,0.94281652]
[1744270915934,6e-07,81533.0,81532.0,0.61210785]
[1744270916137,6e-07,81533.0,81532.0,0.77073352]
[1744270918219,6e-07,81533.0,81532.0,0.94281352]
[1744270918662,6e-07,81533.0,81532.0,0.77073352]
[1744270918963,6e-07,81533.0,81532.0,0.94281352]
[1744270919298,6e-07,81533.0,81532.0,0.90474167]
[1744270919485,6e-07,81533.0,81532.0,0.94278525]
[1744270919682,6e-07,81533.0,81532.0,1.27888525]
[1744270919891,6e-07,81533.0,81532.0,1.35658525]
[1744270920319,6e-07,81533.0,81532.0,1.40308525]
[1744270924749,0.004,81559.0,81558.0,0.257485]
[1744270924976,0.004,81559.0,81558.0,2.22829013]
[1744270925095,0.00412774,81559.0,81558.0,2.22583822]
[1744270925295,0.00412774,81559.0,81558.0,2.24868635]
[1744270925725,0.00412774,81559.0,81558.0,2.22583822]
[1744270926201,0.00412774,81559.0,81558.0,2.05379822]
[1744270926518,0.00412774,81559.0,81558.0,2.22583822]
[1744270927067,0.00412774,81559.0,81558.0,2.23484306]
[1744270927521,0.00412774,81559.0,81558.0,2.6274039]
[1744270927690,0.00412774,81559.0,81558.0,2.4553639]
[1744270927897,0.00412774,81559.0,81558.0,2.63985483]
[1744270928279,0.00412774,81559.0,81558.0,2.60183484]
[1744270930385,0.00412774,81559.0,81558.0,2.6398453]
[1744270931717,0.00412774,81559.0,81558.0,2.4678053]
[1744270931931,0.00412774,81559.0,81558.0,2.6398453]
[1744270932101,0.00412774,81559.0,81558.0,2.60183484]
[1744270932300,0.00412774,81559.0,81558.0,2.63984028]
[1744270934547,7.4e-07,81560.0,81559.0,0.65912285]
[1744270934710,8e-05,81573.0,81572.0,0.61198185]
[1744270934907,8e-05,81573.0,81572.0,0.73253567]
[1744270937287,8e-05,81573.0,81572.0,1.14633507]
[1744270939312,8e-05,81573.0,81572.0,1.18433712]
[1744270939635,8e-05,81573.0,81572.0,1.14633507]
[1744270940205,8e-05,81573.0,81572.0,1.13179422]
[1744270941214,8e-05,81573.0,81572.0,1.30367422]
[1744270942966,8e-05,81573.0,81572.0,1.35624016]
[1744270944985,8e-05,81573.0,81572.0,1.34169931]
[1744270945192,8e-05,81573.0,81572.0,1.30367422]
[1744270945392,8e-05,81573.0,81572.0,1.34171763]
[1744270945618,8e-05,81573.0,81572.0,1.30367422]
[1744270946026,8e-05,81573.0,81572.0,0.96367422]
[1744270946445,8e-05,81573.0,81572.0,0.70623322]
[1744270946446,0.293459,81573.0,81572.0,0.70623322]
[1744270946640,0.305717,81573.0,81572.0,0.70623322]
[1744270946840,0.31170203,81573.0,81572.0,0.29243382]
[1744270947063,0.31170203,81573.0,81572.0,0.17188]
[1744270947754,0.35990203,81573.0,81572.0,0.12508]
[1744270947925,0.35990203,81573.0,81572.0,0.02828]
[1744270948127,0.35990203,81573.0,81558.0,1.26196]
[1744270948128,0.327882,81559.0,81558.0,1.26196]
[1744270948329,0.327882,81559.0,81558.0,1.43384]
[1744270948529,0.33375766,81559.0,81558.0,1.43384]
[1744270948753,0.327882,81559.0,81558.0,1.43384]
[1744270949054,0.33375766,81559.0,81558.0,1.43384]
[1744270949971,0.257531,81544.0,81533.0,0.012264]
[1744270950109,0.245273,81542.0,81539.0,0.00012774]
[1744270950310,0.00576454,81541.0,81540.0,0.36583082]
[1744270950596,0.012262,81547.0,81540.0,0.36583082]
[1744270950597,0.24522,81560.0,81555.0,0.012261]
[1744270950746,0.245234,81555.0,81551.0,0.245245]
[1744270950964,0.245237,81554.0,81552.0,0.29247382]
[1744270951320,0.2575,81553.0,81552.0,0.29247382]
[1744270951523,0.2575,81553.0,81552.0,0.17192]
[1744270951797,0.2575,81553.0,81552.0,0.189112]
[1744270952001,0.2575,81553.0,81552.0,0.17192]
[1744270952553,0.245237,81554.0,81552.0,0.17192]
[1744270952775,0.2575,81553.0,81552.0,0.29247382]
[1744270952984,0.2575,81553.0,81552.0,0.17192]
[1744270953205,0.012261,81556.0,81552.0,0.29247382]
[1744270953407,0.245236,81554.0,81553.0,0.12055382]
[1744270953683,0.257497,81554.0,81553.0,0.12055382]
[1744270955380,0.245236,81554.0,81553.0,0.12055382]
[1744270955492,0.012263,81540.0,81532.0,0.25457119]
[1744270955691,0.012263,81540.0,81525.0,0.1720885]
[1744270955692,0.257541,81540.0,81539.0,0.00012774]
[1744270955906,0.245262,81546.0,81541.0,0.012263]
[1744270956113,0.245251,81549.0,81542.0,0.012263]
[1744270956332,0.257535,81543.0,81542.0,0.12055382]
[1744270956535,0.257535,81543.0,81542.0,0.29247382]
[1744270956740,0.26455632,81543.0,81542.0,0.29247382]
[1744270957158,0.26455632,81543.0,81542.0,0.17192]
[1744270961111,0.31165632,81543.0,81542.0,0.17192]
[1744270961692,0.31165632,81543.0,81542.0,0.18912477]
[1744270961864,0.00702132,81543.0,81542.0,0.56721359]
[1744270962015,0.012262,81549.0,81544.0,0.245264]
[1744270962219,0.245257,81547.0,81545.0,0.12055382]
[1744270962420,0.26455786,81546.0,81545.0,0.12055382]
[1744270962633,0.245264,81545.0,81542.0,0.17192]
[1744270962832,0.26455483,81544.0,81542.0,0.17192]
[1744270963030,0.257532,81543.0,81542.0,0.17192]
[1744270963233,0.00702132,81543.0,81542.0,0.55000882]
[1744270963477,0.245261,81546.0,81543.0,0.245269]
[1744270963704,0.245254,81548.0,81544.0,0.12055382]
[1744270963705,0.00703035,81545.0,81544.0,0.12055382]
[1744270963893,0.245248,81550.0,81546.0,0.24526]
[1744270964089,0.25228987,81549.0,81547.0,0.12055382]
[1744270964640,0.245254,81548.0,81547.0,0.12055382]
[1744270964862,0.25230175,81548.0,81547.0,0.12055382]
[1744270966398,0.26456375,81548.0,81547.0,0.12055382]
[1744270966761,0.245269,81543.0,81542.0,0.17192]
[1744270966978,0.245269,81543.0,81542.0,0.29247382]
[1744270967179,0.25229535,81543.0,81542.0,0.29247382]
[1744270967340,0.26455835,81543.0,81542.0,0.17192]
[1744270968042,0.257541,81540.0,81539.0,0.00012774]
[1744270968252,0.2645538,81540.0,81539.0,0.00012774]
[1744270969542,0.645341,81540.0,81539.0,0.00012774]
[1744270969901,1.045341,81540.0,81539.0,0.00012774]
[1744270970296,0.257586,81526.0,81525.0,0.0001685]
[1744270974309,0.657586,81526.0,81525.0,0.0001685]
[1744270978665,0.257586,81526.0,81525.0,0.0001685]
[1744270980656,0.3593916,81526.0,81525.0,0.0001685]
[1744270980902,0.257586,81526.0,81525.0,0.0001685]
[1744270987237,0.597586,81526.0,81525.0,0.0001685]
[1744270989288,0.638286,81526.0,81525.0,0.0001685]
[1744270990650,0.65800339,81526.0,81525.0,0.0001685]
[1744270991274,0.61730339,81526.0,81525.0,0.0001685]
[1744270991676,1.00603631,81526.0,81525.0,0.0001685]
[1744270992203,0.997586,81526.0,81525.0,0.0001685]
[1744270993915,0.657586,81526.0,81525.0,0.0001685]
[1744270994710,0.257586,81526.0,81525.0,0.0001685]
[1744270999458,0.26607441,81526.0,81525.0,0.0001685]
[1744271000934,0.27739241,81526.0,81525.0,0.0001685]
[1744271001934,0.26607441,81526.0,81525.0,0.0001685]
[1744271002093,0.245308,81531.0,81528.0,0.292813]
[1744271002303,0.257576,81529.0,81528.0,0.0475]
[1744271002502,0.00012758,81540.0,81535.0,0.012264]
[1744271002684,0.00012758,81540.0,81538.0,0.245283]
[1744271002887,0.00012758,81540.0,81536.0,0.12055382]
[1744271002888,0.00012758,81540.0,81539.0,0.17172]
[1744271003092,0.00012758,81540.0,81539.0,0.29227382]
[1744271003382,0.00012758,81540.0,81539.0,0.33947382]
[1744271003505,0.00012758,81540.0,81539.0,0.59701882]
[1744271003711,0.00312758,81540.0,81539.0,0.59701882]
[1744271005652,0.00012758,81540.0,81539.0,0.59701882]
[1744271006930,0.00012758,81540.0,81539.0,0.64451882]
[1744271007555,0.00012758,81540.0,81539.0,1.07552392]
[1744271007760,0.012259,81568.0,81562.0,0.0451]
[1744271008081,0.245206,81564.0,81563.0,0.29223382]
[1744271008304,0.257466,81564.0,81563.0,0.29223382]
[1744271009370,0.245205,81565.0,81563.0,0.29223382]
[1744271009569,0.245206,81564.0,81563.0,0.30988658]
[1744271009887,0.257466,81564.0,81563.0,0.30988658]
[1744271011900,0.257466,81564.0,81563.0,0.29223382]
[1744271012505,0.00012767,81568.0,81566.0,0.2452]
[1744271012744,0.25758067,81568.0,81567.0,0.12055382]
[1744271012952,0.00012767,81568.0,81567.0,0.12055382]
[1744271013125,0.25758067,81568.0,81567.0,0.12055382]
[1744271015204,0.00012767,81568.0,81567.0,0.12055382]
[1744271015422,0.25758067,81568.0,81567.0,0.12055382]
[1744271019321,0.257466,81564.0,81563.0,0.17168]
[1744271019515,0.257507,81552.0,81541.0,0.0477]
[1744271019697,0.257532,81543.0,81542.0,0.29219382]
[1744271019909,0.257532,81543.0,81542.0,0.12055382]
[1744271020111,0.257557,81535.0,81534.0,0.0477]
[1744271020428,0.257557,81535.0,81534.0,0.16825382]
[1744271020660,0.257557,81535.0,81534.0,0.0477]
[1744271021761,0.012265,81527.0,81526.0,0.0494]
[1744271021910,0.012265,81527.0,81526.0,0.16995382]
[1744271022106,0.257583,81527.0,81525.0,0.00029608]
[1744271022305,0.257586,81526.0,81525.0,0.00029608]
[1744271022563,0.997586,81526.0,81525.0,0.00029608]
[1744271022801,0.997586,81526.0,81525.0,8e-08]
[1744271022802,1.119076,81526.0,81525.0,8e-08]
[1744271022921,1.25917067,81526.0,81525.0,8e-08]
[1744271023117,1.37960326,81526.0,81525.0,8e-08]
[1744271023316,1.25917067,81526.0,81525.0,8e-08]
[1744271024116,1.119076,81526.0,81525.0,8e-08]
[1744271024515,1.123076,81526.0,81525.0,8e-08]
[1744271025462,1.126076,81526.0,81525.0,8e-08]
[1744271025862,1.004586,81526.0,81525.0,8e-08]
[1744271026066,0.664586,81526.0,81525.0,8e-08]
[1744271026344,0.264586,81526.0,81525.0,8e-08]
[1744271026520,0.019266,81526.0,81525.0,8e-08]
[1744271026741,0.007,81526.0,81525.0,0.1205539]
[1744271027298,0.003,81526.0,81525.0,0.1205539]
[1744271027613,0.016266,81526.0,81525.0,0.1205539]
[1744271028186,0.012266,81526.0,81525.0,0.1205539]
[1744271028590,0.257575,81530.0,81525.0,0.1205539]
[1744271028591,0.245308,81530.0,81525.0,0.1205539]
[1744271028810,0.245314,81528.0,81526.0,0.12055382]
[1744271029009,0.257573,81530.0,81526.0,0.12055382]
[1744271029209,0.257582,81527.0,81526.0,0.12055382]
[1744271029411,0.257582,81527.0,81525.0,8e-08]
[1744271029412,0.012266,81526.0,81525.0,8e-08]
[1744271030429,0.352266,81526.0,81525.0,8e-08]
[1744271030636,0.48736067,81526.0,81525.0,8e-08]
[1744271030788,0.52826067,81526.0,81525.0,8e-08]
[1744271030983,0.65369326,81526.0,81525.0,8e-08]
[1744271031553,0.53326067,81526.0,81525.0,8e-08]
[1744271031849,0.53726067,81526.0,81525.0,8e-08]
[1744271032359,0.54426067,81526.0,81525.0,0.00100008]
[1744271032583,0.94426067,81526.0,81525.0,8e-08]
[1744271033542,0.94026067,81526.0,81525.0,8e-08]
[1744271033762,1.06069326,81526.0,81525.0,0.00100008]
[1744271033957,0.95626067,81526.0,81525.0,0.00200008]
[1744271034534,1.20158067,81526.0,81525.0,0.00200008]
[1744271035254,1.16068067,81526.0,81525.0,0.00200008]
[1744271035455,1.15568067,81526.0,81525.0,0.00200008]
[1744271035696,1.14113982,81526.0,81525.0,0.00200008]
[1744271035891,1.020586,81526.0,81525.0,0.00200008]
[1744271036278,1.15568067,81526.0,81525.0,8e-08]
[1744271036486,1.16068067,81526.0,81525.0,8e-08]
[1744271037376,1.23427067,81526.0,81525.0,8e-08]
[1744271037573,0.676194,81520.0,81519.0,5.8e-07]
[1744271037778,0.61217685,81510.0,81509.0,9.8e-07]
[1744271037977,0.73273067,81510.0,81509.0,9.8e-07]
[1744271038159,0.73273067,81510.0,81506.0,0.0001684]
[1744271038160,0.676235,81507.0,81506.0,3.8e-07]
[1744271038340,0.602661,81502.0,81501.0,6.2e-07]
[1744271038542,0.81134567,81502.0,81501.0,6.2e-07]
[1744271039022,0.80634567,81502.0,81501.0,6.2e-07]
[1744271039226,0.597661,81502.0,81501.0,6.2e-07]
[1744271040427,0.603661,81502.0,81501.0,6.2e-07]
[1744271041027,0.606661,81502.0,81501.0,6.2e-07]
[1744271041408,0.610661,81502.0,81501.0,6.2e-07]
[1744271041582,0.270661,81502.0,81501.0,6.2e-07]
[1744271041788,0.257661,81502.0,81501.0,6.2e-07]
[1744271042021,0.597661,81502.0,81501.0,6.2e-07]
[1744271042156,0.77433715,81502.0,81501.0,6.2e-07]
[1744271042352,0.788878,81502.0,81501.0,6.2e-07]
[1744271042575,0.74175567,81502.0,81501.0,6.2e-07]
[1744271043640,0.74275567,81502.0,81501.0,6.2e-07]
[1744271044030,0.73875567,81502.0,81501.0,6.2e-07]
[1744271044230,0.73775567,81502.0,81501.0,6.2e-07]
[1744271044373,0.74275567,81502.0,81501.0,6.2e-07]
[1744271044574,0.74875567,81502.0,81501.0,6.2e-07]
[1744271044822,0.74375567,81502.0,81501.0,6.2e-07]
[1744271044983,0.82297235,81502.0,81501.0,6.2e-07]
[1744271045187,0.75075567,81502.0,81501.0,6.2e-07]
[1744271045388,1.15075567,81502.0,81501.0,6.2e-07]
[1744271045684,0.597667,81500.0,81499.0,1.2e-07]
[1744271045889,0.597667,81500.0,81476.0,8.2e-07]
[1744271045890,0.012272,81482.0,81476.0,8.2e-07]
[1744271046085,0.597741,81477.0,81476.0,8.2e-07]
[1744271046287,0.997741,81477.0,81476.0,8.2e-07]
[1744271047086,0.997741,81477.0,81476.0,0.00042681]
[1744271047415,0.597741,81477.0,81476.0,0.00042681]
[1744271048474,0.61011959,81477.0,81476.0,0.00042681]
[1744271048926,0.597741,81477.0,81476.0,0.00042681]
[1744271051574,0.257741,81477.0,81476.0,0.04832681]
[1744271052321,0.245456,81481.0,81478.0,0.245463]
[1744271052524,0.257724,81482.0,81476.0,0.24228833]
[1744271052525,0.257741,81477.0,81476.0,0.24228833]
[1744271052848,0.257741,81477.0,81476.0,0.21988681]
[1744271052999,0.257724,81482.0,81476.0,0.21988681]
[1744271053000,0.012272,81481.0,81476.0,0.63091063]
[1744271053206,0.245462,81479.0,81477.0,0.12055382]
[1744271053403,0.245465,81478.0,81477.0,0.12055382]
[1744271053573,0.257738,81478.0,81477.0,0.12055382]
[1744271055335,0.245464,81479.0,81477.0,0.12055382]
[1744271055504,0.257731,81480.0,81477.0,0.29211382]
[1744271055701,0.245462,81479.0,81477.0,0.29211382]
[1744271055906,0.257735,81479.0,81477.0,0.29211382]
[1744271056158,0.245462,81479.0,81477.0,0.29211382]
[1744271056359,0.257735,81479.0,81477.0,0.29211382]
[1744271056763,0.257724,81483.0,81477.0,0.30438682]
[1744271056994,0.24546,81480.0,81477.0,0.54985482]
[1744271057137,0.24546,81480.0,81477.0,0.29211382]
[1744271057354,0.245444,81485.0,81477.0,0.54985182]
[1744271057711,0.245426,81491.0,81486.0,0.0495]
[1744271057821,0.245431,81490.0,81487.0,0.12055382]
[1744271058031,0.257702,81490.0,81487.0,0.12918542]
[1744271058444,0.257702,81492.0,81487.0,0.14145642]
[1744271058713,0.245431,81492.0,81488.0,0.245434]
[1744271058916,0.245405,81498.0,81487.0,0.14145642]
[1744271058917,0.012269,81506.0,81499.0,0.0492]
[1744271059118,0.257665,81501.0,81500.0,0.17156]
[1744271060041,0.245381,81506.0,81502.0,0.25766]
[1744271060195,0.245381,81506.0,81503.0,0.245388]
[1744271060395,0.012268,81511.0,81503.0,0.245388]
[1744271060396,0.245361,81513.0,81507.0,0.257644]
[1744271060598,0.245351,81516.0,81509.0,0.012268]
[1744271060940,0.257667,81500.0,81485.0,0.012272]
[1744271061145,0.257667,81500.0,81495.0,0.17128]
[1744271061345,0.245392,81502.0,81495.0,0.17128]
[1744271061575,0.257665,81501.0,81500.0,0.022048]
[1744271062354,0.257667,81500.0,81495.0,0.17128]
[1744271063314,0.25765,81506.0,81501.0,0.245395]
[1744271063516,0.012269,81506.0,81502.0,0.12055382]
[1744271063722,0.257656,81504.0,81502.0,0.12055382]
[1744271063894,0.012269,81503.0,81502.0,0.12055382]
[1744271064096,0.257667,81500.0,81499.0,0.0492]
[1744271064331,0.257667,81500.0,81499.0,0.001]